bitfinex/quotes_ETHUSD_20250630
["timestamp","ask_amount","ask_price","bid_price","bid_amount"]
[1751282759248,11.735,2463.8,2463.5,0.55]
[1751282759456,0.2024,2463.6,2463.5,0.55]
[1751282760464,0.2024,2463.6,2463.3,4.60954835]
[1751282760967,0.2024,2463.6,2463.3,0.55]
[1751282761264,0.2024,2463.4,2463.3,4.60959485]
[1751282761675,2.735,2463.7,2463.6,0.55]
[1751282763646,1.0,2463.7,2463.6,4.6091005]
[1751282763863,1.0,2463.7,2463.6,0.55]
[1751282769777,0.2024,2463.6,2463.2,4.60969974]
[1751282769946,5.05901993,2463.7,2463.2,4.60969974]
[1751282770146,0.2024,2463.5,2463.2,4.60969974]
[1751282770472,0.2024,2463.5,2463.2,0.55]
[1751282770776,0.2024,2463.5,2463.3,0.55]
[1751282777075,0.2024,2463.5,2463.3,4.60954913]
[1751282777687,0.2024,2463.5,2463.3,0.55]
[1751282778060,0.2024,2463.5,2463.3,4.6095932]
[1751282778376,0.2024,2463.5,2463.4,4.60943005]
[1751282778952,0.2024,2463.5,2463.4,0.55]
[1751282779787,0.2024,2463.5,2463.4,4.60943005]
[1751282780887,0.2024,2463.5,2463.4,0.55]
[1751282781385,0.2024,2463.5,2463.4,4.60943005]
[1751282782588,0.2024,2463.5,2463.4,0.55]
[1751282782788,0.2024,2463.5,2463.4,4.60943005]
[1751282783199,0.2024,2463.5,2463.4,0.55]
[1751282783793,0.2024,2463.5,2463.4,4.60943005]
[1751282785801,0.2024,2463.5,2463.4,0.55]
[1751282785990,0.2024,2463.5,2463.4,4.60943005]
[1751282787570,0.2024,2463.5,2463.4,0.55]
[1751282788067,0.2024,2463.5,2463.4,4.60943005]
[1751282792421,0.2024,2463.5,2463.4,0.55]
[1751282792621,0.2024,2463.5,2463.4,4.60943005]
[1751282793714,8.371,2463.9,2463.7,4.05889406]
[1751282793918,12.02256608,2463.9,2463.7,0.55]
[1751282794104,7.96393497,2463.9,2463.7,0.55]
[1751282795399,0.2024,2463.7,2463.6,0.55]
[1751282795595,7.96393497,2463.9,2463.6,0.55]
[1751282795922,7.96393497,2463.9,2463.7,0.55]
[1751282796101,1.45524727,2463.8,2463.7,0.55]
[1751282798618,0.2024,2463.7,2463.5,0.55]
[1751282799021,0.2024,2463.6,2463.5,0.55]
[1751282799517,0.2024,2463.6,2463.4,4.05941694]
[1751282799724,0.2024,2463.6,2463.5,0.55]
[1751282799924,0.2024,2463.6,2463.5,0.5]
[1751282800829,0.961,2463.6,2463.1,4.05986182]
[1751282801003,0.2024,2463.1,2462.7,7.3941]
[1751282801203,0.2024,2463.1,2462.9,4.06012365]
[1751282801708,4.81729436,2463.2,2462.8,4.06039439]
[1751282801926,0.2024,2462.9,2462.5,10.58863519]
[1751282802132,0.2024,2462.9,2462.7,4.06045455]
[1751282802327,0.2024,2462.9,2462.8,4.61041903]
[1751282802528,0.2024,2462.9,2462.8,0.55]
[1751282803531,0.2024,2462.9,2462.6,4.06066226]
[1751282803733,0.2024,2462.8,2462.7,0.55]
[1751282805201,0.2024,2462.8,2462.6,0.55]
[1751282805805,0.2024,2462.6,2462.4,4.0810121]
[1751282806036,0.2024,2462.6,2462.5,0.55]
[1751282806236,0.2024,2462.6,2462.4,4.63107074]
[1751282806536,0.2024,2462.6,2462.5,4.6109137]
[1751282807735,0.2024,2462.6,2462.4,0.02]
[1751282807920,0.8192,2462.5,2462.4,0.02]
[1751282808423,1.307188,2462.5,2462.4,0.02]
[1751282808816,8.368,2462.5,2462.4,0.02]
[1751282810132,1.728,2462.5,2462.4,0.02]
[1751282810331,1.9304,2462.5,2462.4,0.02]
[1751282813121,5.9913137,2462.5,2462.4,0.02]
[1751282813536,1.9304,2462.5,2462.4,0.02]
[1751282813741,3.67541895,2462.5,2462.4,0.02]
[1751282814238,1.94741895,2462.5,2462.4,0.02]
[1751282814410,8.5714,2462.5,2462.4,4.63107862]
[1751282814616,0.2024,2462.5,2462.4,4.63107862]
[1751282815743,0.2024,2462.5,2462.4,0.57]
[1751282815931,0.2024,2462.5,2462.4,4.63107862]
[1751282816126,0.2024,2462.5,2462.4,0.57]
[1751282817448,0.2024,2462.5,2462.4,4.63107862]
[1751282818521,0.2024,2462.5,2462.4,5.40567862]
[1751282820751,1.728,2462.7,2462.6,4.61067276]
[1751282821062,1.9304,2462.7,2462.6,4.61067276]
[1751282821247,1.9304,2462.7,2462.6,0.55]
[1751282821425,2.7121421,2462.7,2462.6,0.55]
[1751282824958,2.7121421,2462.7,2462.4,0.02]
[1751282825260,0.2024,2462.5,2462.4,0.02]
[1751282826366,0.2024,2462.5,2462.4,4.63107862]
[1751282831350,0.2024,2462.5,2462.4,0.57]
[1751282831976,0.2024,2462.5,2462.4,4.63107862]
[1751282833586,0.2024,2462.5,2462.4,0.57]
[1751282833965,0.2024,2462.5,2462.4,4.63107862]
[1751282836185,0.2024,2462.5,2462.4,0.57]
[1751282836688,0.2024,2462.5,2462.4,4.63107862]
[1751282856116,0.7732,2462.9,2462.7,4.06054141]
[1751282856117,2.4992,2462.9,2462.7,4.06054141]
[1751282856322,0.53151023,2462.9,2462.8,4.61041903]
[1751282856619,1.726,2463.0,2462.9,4.61025417]
[1751282856811,2.20772944,2463.1,2462.9,4.61025417]
[1751282857009,2.20772944,2463.1,2463.0,4.06008932]
[1751282857208,17.4332,2463.3,2462.6,0.775]
[1751282857209,7.4332,2463.3,2463.1,4.60987718]
[1751282857412,9.1592,2463.3,2463.1,4.60987718]
[1751282860226,16.778,2463.4,2463.3,4.60959485]
[1751282860724,0.2024,2463.4,2463.3,4.60959485]
[1751282877241,0.2024,2463.4,2463.0,4.84766448]
[1751282877418,0.67458939,2463.4,2463.2,4.05974619]
[1751282877742,0.2024,2463.2,2463.1,4.60983518]
[1751282879762,0.01,2463.5,2463.4,4.60943005]
[1751282884556,0.01,2463.5,2463.4,0.55]
[1751282892366,0.01,2463.5,2463.4,4.60943005]
[1751282893642,0.01,2463.5,2463.4,0.55]
[1751282893971,0.01,2463.5,2463.4,4.60943005]
[1751282894169,0.01,2463.5,2463.4,5.37743005]
[1751282896111,0.01,2463.5,2463.4,12.66876609]
[1751282896592,0.01,2463.5,2463.4,22.87116609]
[1751282899064,0.01,2463.5,2463.4,29.49416609]
[1751282903971,0.01,2463.5,2463.4,22.87116609]
[1751282904189,0.01,2463.5,2463.4,29.49316609]
[1751282908205,0.01,2463.5,2463.4,22.87116609]
[1751282912524,0.01,2463.5,2463.4,16.54576989]
[1751282916429,0.01,2463.5,2463.4,14.81183005]
[1751282916750,0.01,2463.5,2463.4,14.60943005]
[1751282920637,0.01,2463.5,2463.4,4.60943005]
[1751282929713,0.01,2463.5,2463.4,5.43123005]
[1751282929922,0.01,2463.5,2463.4,11.75662625]
[1751282930225,0.01,2463.5,2463.4,13.54264571]
[1751282932244,0.01,2463.5,2463.4,11.13722625]
[1751282938959,0.01,2463.5,2463.4,4.81183005]
[1751282940253,0.01,2463.5,2463.4,5.64463005]
[1751282941064,0.01,2463.5,2463.4,22.25963005]
[1751282945301,0.01,2463.5,2463.4,28.58502625]
[1751282967202,0.01,2463.5,2463.4,28.58002625]
[1751282973431,0.01,2463.5,2463.4,27.74722625]
[1751282973793,0.01,2463.5,2463.4,14.26183005]
[1751282974033,0.01,2463.5,2463.4,20.86983005]
[1751282974239,0.01,2463.5,2463.4,21.41983005]
[1751282975531,0.01,2463.5,2463.4,21.43983005]
[1751282981007,0.01,2463.5,2463.4,11.43983005]
[1751282982340,0.01,2463.5,2463.4,13.62430056]
[1751282985941,0.01,2463.5,2463.4,11.43983005]
[1751283000555,0.01,2463.5,2463.4,11.23743005]
[1751283003163,0.01,2463.5,2463.4,11.23343005]
[1751283007158,0.01,2463.5,2463.4,4.62943005]
[1751283009572,0.01,2463.5,2463.4,0.57]
[1751283009777,0.7969,2463.5,2463.4,0.57]
[1751283009941,1.6884071,2463.5,2463.4,0.57]
[1751283011857,1.1039071,2463.5,2463.4,4.62943005]
[1751283012063,0.2124,2463.5,2463.4,4.62943005]
[1751283018607,0.01,2463.5,2463.4,4.62943005]
[1751283020163,0.01,2463.5,2463.4,4.83183005]
[1751283020357,0.01,2463.5,2463.4,14.83183005]
[1751283020684,0.01,2463.5,2463.4,28.53425073]
[1751283022768,0.01,2463.5,2463.4,22.20883005]
[1751283023594,0.01,2463.5,2463.4,20.88183005]
[1751283023802,0.01,2463.5,2463.4,10.67943005]
[1751283024464,0.01,2463.5,2463.4,11.22943005]
[1751283025796,0.01,2463.5,2463.4,4.62943005]
[1751283032814,0.01,2463.5,2463.4,0.57]
[1751283032977,0.01,2463.5,2463.4,4.62943005]
[1751283033307,0.01,2463.5,2463.4,0.57]
[1751283036210,0.01,2463.5,2463.4,4.62943005]
[1751283036800,0.01,2463.5,2463.4,0.57]
[1751283044299,0.49738325,2463.5,2463.4,0.57]
[1751283047232,0.01,2463.5,2463.4,4.62943005]
[1751283047432,0.01,2463.5,2463.4,0.57]
[1751283051518,0.01,2463.5,2463.4,4.62943005]
[1751283052754,0.01,2463.5,2463.4,0.57]
[1751283053354,0.01,2463.5,2463.4,4.62943005]
[1751283054052,0.01,2463.5,2463.4,0.57]
[1751283056355,0.49738639,2463.5,2463.4,0.57]
[1751283061368,5.30915166,2463.5,2463.4,0.57]
[1751283062049,1.24988639,2463.5,2463.4,0.57]
[1751283062664,5.30915166,2463.5,2463.4,0.57]
[1751283063432,1.24988639,2463.5,2463.4,0.57]
[1751283063869,5.30915166,2463.5,2463.4,0.57]
[1751283064839,1.24988639,2463.5,2463.4,0.57]
[1751283065467,5.30915166,2463.5,2463.4,0.02]
[1751283065682,11.90315166,2463.5,2463.4,0.02]
[1751283067183,28.23034461,2463.5,2463.4,0.02]
[1751283071466,15.30915166,2463.5,2463.4,0.02]
[1751283071667,23.60415166,2463.5,2463.4,0.02]
[1751283075101,15.30915166,2463.5,2463.4,0.02]
[1751283075269,23.60415166,2463.5,2463.4,0.02]
[1751283076203,23.60115166,2463.5,2463.4,0.02]
[1751283078092,31.43115166,2463.5,2463.4,0.02]
[1751283088606,37.75834461,2463.5,2463.4,0.02]
[1751283096306,47.90634461,2463.5,2463.4,0.02]
[1751283103342,33.28715166,2463.5,2463.4,0.02]
[1751283103510,40.82365166,2463.5,2463.4,0.02]
[1751283113246,32.53465166,2463.5,2463.4,0.02]
[1751283113658,40.81765166,2463.5,2463.4,0.02]
[1751283115166,41.63545166,2463.5,2463.4,0.02]
[1751283120471,32.53465166,2463.5,2463.4,0.02]
[1751283120669,40.81665166,2463.5,2463.4,0.02]
[1751283121083,36.27,2463.5,2463.4,0.7949]
[1751283121585,26.27,2463.5,2463.4,0.7949]
[1751283122667,18.439,2463.5,2463.4,0.7949]
[1751283125483,10.158,2463.5,2463.4,4.85433005]
[1751283125682,18.438,2463.5,2463.4,4.85433005]
[1751283125884,16.742,2463.5,2463.4,4.85433005]
[1751283126185,16.742,2463.5,2463.4,6.29772115]
[1751283127274,16.742,2463.5,2463.4,2.2382911]
[1751283127478,16.742,2463.5,2463.4,6.29772115]
[1751283128166,6.594,2463.5,2463.4,6.29772115]
[1751283137028,0.01,2463.5,2463.4,6.29772115]
[1751283140210,0.01,2463.5,2463.4,6.50012115]
[1751283143128,0.01,2463.5,2463.4,0.7949]
[1751283143301,0.01,2463.5,2463.4,4.85433005]
[1751283143503,0.01,2463.5,2463.4,5.40433005]
[1751283143686,0.2124,2463.5,2463.4,5.40433005]
[1751283156313,0.2124,2463.5,2463.4,4.62943005]
[1751283158449,0.01,2463.5,2463.4,6.40310087]
[1751283158946,0.01,2463.5,2463.4,6.60550087]
[1751283159335,0.01,2463.5,2463.4,16.60550087]
[1751283162246,0.01,2463.5,2463.4,22.93269382]
[1751283163532,0.01,2463.5,2463.4,29.50969382]
[1751283173294,0.01,2463.5,2463.4,23.18250087]
[1751283173458,0.01,2463.5,2463.4,29.50969382]
[1751283181170,0.01,2463.5,2463.4,0.02]
[1751283181471,0.01,2463.5,2463.4,4.62943005]
[1751283185911,0.01,2463.5,2463.4,18.293323]
[1751283186110,0.01,2463.5,2463.4,28.495723]
[1751283195713,0.01,2463.5,2463.4,22.16853005]
[1751283196219,0.01,2463.5,2463.4,14.07943005]
[1751283196388,0.01,2463.5,2463.4,4.07943005]
[1751283196703,0.01,2463.5,2463.4,4.62943005]
[1751283197691,0.01,2463.5,2463.4,5.38703005]
[1751283198085,0.01,2463.5,2463.4,11.20143005]
[1751283200222,0.01,2463.5,2463.4,4.62943005]
[1751283201192,0.01,2463.5,2463.4,5.45093005]
[1751283201389,0.01,2463.5,2463.4,21.778123]
[1751283207629,0.01,2463.5,2463.4,21.980523]
[1751283208517,0.8043,2464.4,2464.1,4.60827685]
[1751283208721,1.0067,2464.4,2464.3,4.60794749]
[1751283211109,0.01,2464.5,2464.4,4.05778282]
[1751283211701,0.01,2464.5,2464.4,4.60778282]
[1751283213340,0.01,2464.5,2464.4,5.49459333]
[1751283214629,0.01,2464.5,2464.4,5.69699333]
[1751283214941,0.01,2464.5,2464.4,22.02418628]
[1751283215348,0.01,2464.5,2464.4,15.69699333]
[1751283217712,0.01,2464.5,2464.4,5.69699333]
[1751283220361,0.01,2464.5,2464.4,4.81018282]
[1751283239970,0.01,2464.5,2464.4,5.63368282]
[1751283243556,0.01,2464.5,2464.4,4.81018282]
[1751283244381,0.01,2464.5,2464.4,4.60778282]
[1751283246872,0.01,2464.5,2464.4,0.55]
[1751283247196,0.01,2464.5,2464.4,4.60778282]
[1751283258002,0.01,2464.5,2464.4,6.15129448]
[1751283258205,0.01,2464.5,2464.4,6.35369448]
[1751283259220,0.01,2464.5,2464.4,4.81018282]
[1751283264496,0.01,2464.5,2464.4,4.60778282]
[1751283301682,0.01,2464.5,2464.4,0.55]
[1751283301877,0.8222,2464.5,2464.4,0.55]
[1751283305869,0.8222,2464.5,2464.2,10.82342922]
[1751283306171,0.8222,2464.5,2464.3,0.55]
[1751283306389,0.8222,2464.5,2464.3,4.60794708]
[1751283306571,0.8222,2464.5,2464.4,4.05778282]
[1751283307872,0.8222,2464.5,2464.3,4.60785763]
[1751283309297,0.8222,2464.5,2464.3,0.55]
[1751283309503,0.8222,2464.5,2464.3,4.60783047]
[1751283310173,0.8222,2464.5,2464.4,4.05778282]
[1751283311782,0.8222,2464.5,2464.3,4.60784647]
[1751283312194,0.8222,2464.5,2464.4,4.05778282]
[1751283312380,0.8222,2464.5,2463.9,4.05854234]
[1751283312580,0.2024,2464.2,2464.0,4.05842733]
[1751283313380,0.2024,2464.2,2464.1,4.05827685]
[1751283313577,0.2024,2464.2,2464.0,4.6083665]
[1751283314709,0.2024,2464.2,2464.1,4.05827685]
[1751283315006,0.2024,2464.2,2464.0,4.05843636]
[1751283315205,0.2024,2464.2,2463.9,4.60850471]
[1751283316378,0.2024,2464.2,2464.1,4.05827685]
[1751283317502,0.2024,2464.2,2464.0,4.05835498]
[1751283318007,0.2024,2464.2,2464.1,4.05827685]
[1751283318712,0.2024,2464.4,2464.3,4.05782908]
[1751283318911,0.01,2464.5,2464.4,4.60778282]
[1751283319894,0.01,2464.5,2464.4,5.39638282]
[1751283320088,0.01,2464.5,2464.4,7.9006]
[1751283320294,0.01,2464.5,2464.4,4.60778282]
[1751283321083,0.01,2464.5,2464.4,0.55]
[1751283322306,1.51748049,2464.5,2464.2,10.62004738]
[1751283322502,0.2024,2464.4,2464.2,6.562]
[1751283323094,0.2024,2464.4,2464.2,4.05803364]
[1751283323295,0.2024,2464.4,2464.1,4.05820603]
[1751283324217,0.2124,2464.4,2464.1,4.05820603]
[1751283324398,0.2124,2464.4,2464.2,4.05809675]
[1751283325687,0.2124,2464.4,2464.1,0.55]
[1751283325926,0.2124,2464.4,2464.3,4.05794749]
[1751283328119,0.2124,2464.4,2464.2,4.05803193]
[1751283329695,0.2124,2464.4,2464.3,4.05794749]
[1751283331093,0.2124,2464.4,2464.3,4.60794749]
[1751283331597,0.01,2464.4,2464.3,5.37714749]
[1751283331801,0.01,2464.4,2464.3,6.32066543]
[1751283333122,0.01,2464.4,2464.3,12.88166543]
[1751283338547,0.01,2464.4,2464.3,12.11246543]
[1751283341706,0.01,2464.4,2464.3,12.91926543]
[1751283349138,0.01,2464.4,2464.3,13.12166543]
[1751283358852,0.01,2464.4,2464.3,19.44292208]
[1751283364080,0.01,2464.4,2464.3,29.44292208]
[1751283364278,0.01,2464.4,2464.3,36.31892208]
[1751283364443,0.01,2464.4,2464.3,39.54803412]
[1751283365169,0.01,2465.0,2464.9,0.55]
[1751283365354,0.01,2465.0,2464.9,18.71562507]
[1751283365559,0.01,2465.0,2464.9,18.91802507]
[1751283366690,0.01,2465.0,2464.9,12.59676842]
[1751283367048,0.01,2465.0,2464.9,18.91802507]
[1751283367359,0.01,2465.0,2464.9,29.78390507]
[1751283367679,0.01,2465.0,2464.9,18.91802507]
[1751283368045,0.01,2465.0,2464.9,28.91802507]
[1751283376068,0.01,2465.0,2464.9,22.59676842]
[1751283376263,0.01,2465.0,2464.9,23.50706842]
[1751283376470,0.01,2465.0,2464.9,13.50706842]
[1751283377701,0.01,2465.0,2464.9,20.65392507]
[1751283378586,0.01,2465.0,2464.9,30.65392507]
[1751283384376,0.01,2465.0,2464.9,24.33266842]
[1751283384721,0.01,2465.0,2464.9,24.33066842]
[1751283386904,0.01,2465.0,2464.9,16.09566842]
[1751283387217,0.01,2465.0,2464.9,23.50506842]
[1751283392577,0.01,2465.0,2464.9,13.50506842]
[1751283392800,0.01,2465.0,2464.9,23.50506842]
[1751283393003,0.01,2465.0,2464.9,10.81435971]
[1751283393214,0.7783,2465.0,2464.9,10.81435971]
[1751283393381,0.7783,2465.0,2464.9,11.36435971]
[1751283394610,0.7783,2465.0,2464.9,4.80935971]
[1751283394812,0.7783,2465.0,2464.9,11.36435971]
[1751283396908,0.7783,2465.0,2464.9,4.80935971]
[1751283397081,0.7783,2465.0,2464.9,11.36435971]
[1751283402807,0.7783,2465.0,2464.9,4.80935971]
[1751283403007,0.7783,2465.0,2464.7,4.05717776]
[1751283403208,0.7783,2465.0,2464.8,10.61210021]
[1751283403400,0.7783,2465.0,2464.9,0.55]
[1751283403599,1.28202458,2465.0,2464.9,0.55]
[1751283404395,0.8318,2464.9,2464.8,4.60712431]
[1751283404625,0.8318,2464.9,2464.8,0.55]
[1751283405098,0.8318,2464.9,2464.8,4.60712431]
[1751283405444,0.8318,2464.9,2464.7,4.05725486]
[1751283405620,1.33675246,2464.9,2464.7,4.05725486]
[1751283405814,0.7818,2464.8,2464.7,4.60725486]
[1751283425520,0.2124,2464.9,2464.8,4.05712431]
[1751283425944,0.2124,2464.9,2464.8,4.60712431]
[1751283431762,0.01,2464.9,2464.8,4.60712431]
[1751283431931,0.01,2464.9,2464.8,5.67596223]
[1751283432358,0.01,2464.9,2464.8,13.04866223]
[1751283440639,0.01,2464.9,2464.8,23.04866223]
[1751283441645,0.01,2464.9,2464.8,53.04866223]
[1751283441874,0.01,2464.9,2464.8,48.07041623]
[1751283442045,0.01,2464.9,2464.8,52.07041623]
[1751283442771,0.01,2464.9,2464.8,57.04866223]
[1751283444780,0.01,2464.9,2464.8,27.04866223]
[1751283444971,0.01,2464.9,2464.8,57.04866223]
[1751283447203,0.01,2464.9,2464.8,26.81391888]
[1751283447653,0.01,2464.9,2464.8,35.04691888]
[1751283448609,0.01,2464.9,2464.8,25.04691888]
[1751283448770,0.01,2464.9,2464.8,34.49691888]
[1751283449173,0.01,2464.9,2464.8,35.04691888]
[1751283449377,0.01,2464.9,2464.8,34.49691888]
[1751283449577,0.01,2464.9,2464.8,30.49691888]
[1751283449775,0.01,2464.9,2464.8,31.04691888]
[1751283451407,0.01,2464.9,2464.8,30.49691888]
[1751283451698,0.01,2464.9,2464.8,31.04691888]
[1751283455204,0.01,2464.9,2464.8,30.49691888]
[1751283457393,0.01,2464.9,2464.8,31.04691888]
[1751283461365,0.01,2464.9,2464.8,31.5442041]
[1751283461764,0.01,2464.9,2464.8,65.5442041]
[1751283461993,0.01,2464.9,2464.8,66.06253511]
[1751283462790,0.01,2464.9,2464.8,70.33353511]
[1751283462983,0.01,2464.9,2464.8,66.06253511]
[1751283463183,0.01,2464.9,2464.8,69.3000896]
[1751283463989,0.01,2464.9,2464.8,39.3000896]
[1751283464501,0.01,2464.9,2464.8,68.78175859]
[1751283465178,0.01,2464.9,2464.8,69.3000896]
[1751283466801,0.01,2464.9,2464.8,39.3000896]
[1751283467006,0.01,2464.9,2464.8,69.3000896]
[1751283467208,0.01,2464.9,2464.8,66.06253511]
[1751283469311,0.01,2464.9,2464.8,65.56524989]
[1751283469615,0.01,2464.9,2464.8,61.53336688]
[1751283469816,0.01,2464.9,2464.8,64.77291723]
[1751283470012,0.01,2464.9,2464.8,57.36275223]
[1751283470186,0.01,2464.9,2464.8,51.72170188]
[1751283470982,0.01,2464.9,2464.8,58.79673988]
[1751283472024,0.01,2464.9,2464.8,65.04691888]
[1751283472324,0.01,2464.9,2464.8,61.31059888]
[1751283472988,0.01,2464.9,2464.8,65.04691888]
[1751283473418,0.00204827,2464.9,2464.8,65.04691888]
[1751283473593,0.00204827,2464.9,2464.8,69.08330893]
[1751283473795,0.00204827,2464.9,2464.8,65.04691888]
[1751283473998,0.01,2465.0,2464.9,14.60695971]
[1751283474315,0.01,2465.0,2464.9,55.1918327]
[1751283474628,0.01,2465.4,2465.3,14.60630146]
[1751283474800,0.01,2465.4,2465.3,29.15755811]
[1751283475006,0.01,2465.4,2465.3,29.35995811]
[1751283475722,0.01,2465.4,2465.3,23.03870146]
[1751283475898,0.01,2465.4,2465.3,23.90513938]
[1751283477324,0.01,2465.4,2465.3,23.03870146]
[1751283480133,0.01,2465.4,2465.3,14.80870146]
[1751283480320,0.01,2465.4,2465.3,21.35970146]
[1751283486210,0.01,2465.4,2465.3,24.59826521]
[1751283486838,0.01,2465.4,2465.3,47.48149246]
[1751283487139,0.01,2465.4,2465.3,30.65737446]
[1751283487443,0.01,2465.4,2465.3,27.20278701]
[1751283490587,0.01,2465.4,2465.3,28.03298701]
[1751283490742,0.01,2465.5,2465.4,5.43633693]
[1751283491059,0.01,2465.5,2465.4,35.43633693]
[1751283492345,0.01,2465.5,2465.4,48.67051848]
[1751283492540,0.01,2465.5,2465.4,52.67051848]
[1751283493423,0.01,2465.7,2465.5,14.60597241]
[1751283493642,0.01,2465.7,2465.5,58.28542906]
[1751283493920,0.01,2465.7,2465.5,62.48782906]
[1751283494350,0.01,2465.7,2465.5,32.48782906]
[1751283494553,0.01,2465.7,2465.5,62.48782906]
[1751283495420,0.01,2465.7,2465.5,58.18970306]
[1751283495839,0.01,2465.7,2465.5,61.42388461]
[1751283496035,0.01,2465.7,2465.5,58.94227261]
[1751283496577,0.01,2465.7,2465.5,59.46727261]
[1751283496786,0.01,2465.7,2465.5,52.01834861]
[1751283496942,0.01,2465.7,2465.5,25.93782906]
[1751283497148,0.01,2465.7,2465.5,34.16582906]
[1751283498340,0.01,2465.7,2465.5,30.16582906]
[1751283498866,0.01,2465.7,2465.5,33.40001061]
[1751283499576,0.01,2465.7,2465.5,32.59081061]
[1751283503073,0.01,2465.7,2465.5,29.35662906]
[1751283503987,0.8152,2465.6,2465.5,10.80737241]
[1751283504654,0.01,2465.6,2465.5,11.35737241]
[1751283507181,0.01,2465.6,2465.5,21.35737241]
[1751283509183,0.7939,2465.6,2465.5,14.80837241]
[1751283509510,0.7939,2465.6,2465.5,10.80737241]
[1751283509799,0.7939,2465.6,2465.5,11.35737241]
[1751283513961,0.7939,2465.6,2465.5,11.15497241]
[1751283520067,0.7939,2465.6,2465.5,17.47622906]
[1751283520298,0.01,2465.6,2465.5,17.67862906]
[1751283520600,0.01,2465.6,2465.5,19.85210566]
[1751283523310,0.01,2465.6,2465.5,17.67862906]
[1751283523914,0.01,2465.6,2465.5,11.35737241]
[1751283524406,0.7957,2465.6,2465.5,11.35737241]
[1751283524708,0.7957,2465.6,2465.5,4.80837241]
[1751283524906,0.7957,2465.6,2465.5,11.35737241]
[1751283527218,0.7957,2465.6,2465.5,11.15497241]
[1751283535630,0.7957,2465.6,2465.5,4.60597241]
[1751283535826,0.7957,2465.6,2465.4,4.05601392]
[1751283535999,1.0031,2465.5,2465.4,4.05601392]
[1751283539829,1.0031,2465.5,2465.3,4.05624963]
[1751283539995,1.51097794,2465.5,2465.4,4.05613693]
[1751283540197,1.0031,2465.5,2465.4,4.05613693]
[1751283540832,1.0031,2465.5,2465.3,4.60622026]
[1751283541040,0.7912,2465.4,2465.1,0.2024]
[1751283541330,0.7912,2465.4,2465.3,4.05630146]
[1751283542332,0.7912,2465.4,2465.2,4.60636383]
[1751283542539,1.29714426,2465.4,2465.2,4.60636383]
[1751283542845,0.01,2465.6,2464.8,0.2024]
[1751283542846,0.7626,2465.2,2464.8,0.2024]
[1751283543048,0.2024,2464.8,2464.5,0.02]
[1751283543210,0.7626,2464.7,2464.5,0.02]
[1751283543416,0.2024,2464.6,2464.5,0.02]
[1751283543843,1.46911271,2464.6,2464.5,0.02]
[1751283546710,0.9669,2464.6,2464.5,4.07761817]
[1751283547608,0.9669,2464.6,2464.5,0.02]
[1751283548035,0.9669,2464.6,2464.5,4.07761817]
[1751283552344,0.9669,2464.6,2464.5,0.02]
[1751283553442,0.9669,2464.6,2464.5,0.01498307]
[1751283553608,1.46931356,2464.6,2464.5,0.01498307]
[1751283553804,0.9669,2464.6,2464.5,4.07260124]
[1751283554127,0.9669,2464.6,2464.5,0.01498307]
[1751283555514,0.9669,2464.6,2464.5,4.07260124]
[1751283555847,0.9669,2464.6,2464.5,0.01498307]
[1751283559342,5.02435354,2464.6,2464.5,0.01498307]
[1751283559545,1.46933535,2464.6,2464.5,0.01498307]
[1751283561755,1.47933535,2464.6,2464.5,0.01498307]
[1751283564351,5.53678889,2464.6,2464.5,0.01498307]
[1751283565257,1.47933535,2464.6,2464.5,0.01498307]
[1751283569768,4.84567685,2464.1,2463.4,3.25418155]
[1751283569965,14.84666527,2463.5,2463.4,0.02]
[1751283570263,23.15966527,2463.5,2463.4,0.02]
[1751283570462,24.97052538,2463.5,2463.4,0.02]
[1751283570832,24.97052538,2463.5,2462.5,3.25418155]
[1751283570833,0.7874,2462.8,2462.5,0.02]
[1751283571060,4.0607488,2462.6,2462.5,0.02]
[1751283571266,5.11932364,2462.6,2462.5,0.02]
[1751283572276,15.11932364,2462.6,2462.5,0.02]
[1751283572775,11.05857484,2462.6,2462.5,0.02]
[1751283574541,19.37357484,2462.6,2462.5,4.0809137]
[1751283574749,19.37357484,2462.6,2462.5,0.02]
[1751283575783,19.37457484,2462.6,2462.5,0.02]
[1751283575973,19.37257484,2462.6,2462.5,0.02]
[1751283576974,19.37257484,2462.6,2462.5,4.0809137]
[1751283577282,19.37257484,2462.6,2462.5,0.02]
[1751283577667,11.05857484,2462.6,2462.5,0.02]
[1751283577862,19.37157484,2462.6,2462.5,0.02]
[1751283578258,11.05857484,2462.6,2462.5,0.02]
[1751283578458,11.05857484,2462.6,2462.5,4.0809137]
[1751283578671,19.37057484,2462.6,2462.5,4.0809137]
[1751283579056,19.37057484,2462.6,2462.5,0.02]
[1751283579474,11.05857484,2462.6,2462.5,0.02]
[1751283579779,19.36957484,2462.6,2462.5,0.02]
[1751283580474,19.36957484,2462.6,2462.5,4.0809137]
[1751283581278,19.36957484,2462.6,2462.5,0.02]
[1751283581576,11.05857484,2462.6,2462.5,4.0809137]
[1751283581783,11.05857484,2462.6,2462.5,0.02]
[1751283581950,19.36657484,2462.6,2462.5,0.02]
[1751283582155,19.36757484,2462.6,2462.5,0.02]
[1751283583361,11.05857484,2462.6,2462.5,0.02]
[1751283583552,19.36557484,2462.6,2462.5,0.02]
[1751283584079,11.05857484,2462.6,2462.5,0.02]
[1751283584389,20.15617484,2462.6,2462.5,0.02]
[1751283587458,20.15617484,2462.6,2462.5,0.00858862]
[1751283588668,20.15617484,2462.6,2462.5,0.38663323]
[1751283589088,11.84817484,2462.6,2462.5,0.38663323]